[Event "Konyaalti Open-B 2019"]
[Site "Konyaalti"]
[Date "2019.11.19"]
[Round "4.2"]
[White "Egeli, Sercan Veli"]
[Black "Akcun, Fayik"]
[Result "1-0"]
[ECO "B09"]
[WhiteElo "1478"]
[BlackElo "1676"]
[Annotator "NA RC"]
[PlyCount "83"]
[EventDate "2019.11.20"]
[EventType "swiss"]
[EventCountry "TUR"]
[SourceTitle "playchess.com"]
[Source "ChessBase"]
[SourceQuality "1"]
[TimeControl "5400+30"]

1. e4 {[%emt 0:00:30]} d6 {[%emt 0:01:30]} 2. d4 {[%emt 0:00:00]} Nf6 {[%emt 0:00:30]} 3. Nc3 {[%emt 0:00:00]} g6 {[%emt 0:00:00]} 4. f4 {[%emt 0:00:00]} Bg7 {[%emt 0:00:00]} 5. Nf3 {[%emt 0:00:00]} a6 {[%emt 0:01:30]} 6. Bd3 {[%emt 0:00:00]} c5 {[%emt 0:13:30]} 7. e5 {[%emt 0:02:00]} Ng4 {[%emt 0:01:30]} 8. dxc5 {[%emt 0:03:30]} dxc5 {[%emt 0:09:30]} 9. h3 {[%emt 0:03:00]} Nh6 {[%emt 0:00:00]} 10. O-O {[%emt 0:00:00]} O-O {[%emt 0:07:00]} 11. Be3 {[%emt 0:00:30]} Nd7 {[%emt 0:12:30]} 12. Qd2 {[%emt 0:01:30]} e6 {[%emt 0:00:30]} 13. Ne4 {[%emt 0:05:30]} Qc7 {[%emt 0:10:30]} 14. Qc3 {[%emt 0:00:30]} b6 {[%emt 0:01:30]} 15. b4 {[%emt 0:22:30]} Nf5 {[%emt 0:01:30]} 16. Bf2 {[%emt 0:03:30]} Bb7 {[%emt 0:00:00]} 17. bxc5 {[%emt 0:06:30]} Rac8 {[%emt 0:06:00]} 18. Rab1 {[%emt 0:01:30]} Nxc5 {[%emt 0:06:30]} 19. Nxc5 {[%emt 0:05:30]} Bxf3 {[%emt 0:04:30]} 20. Bxa6 {[%emt 0:05:30]} Bb7 {[%emt 0:05:04]} 21. Bxb7 {[%emt 0:01:30]} Qxb7 {[%emt 0:00:02]} 22. Nxb7 {[%emt 0:00:30]} Rxc3 {[%emt 0:00:02]} 23. Rxb6 {[%emt 0:00:30]} Rxc2 {[%emt 0:00:08]} 24. a4 {[%emt 0:00:00]} Ra2 {[%emt 0:02:19]} 25. a5 {[%emt 0:00:00]} Bh6 {[%emt 0:00:06]} 26. g4 {[%emt 0:00:30]} Ne7 {[%emt 0:00:19]} 27. Bc5 {[%emt 0:04:30]} Rc8 {[%emt 0:00:26]} 28. Rf2 {[%emt 0:06:30]} Ra1+ {[%emt 0:01:36]} 29. Rf1 {[%emt 0:00:30]} Ra2 {[%emt 0:00:19]} 30. Rbb1 {[%emt 0:01:30]} Nd5 {[%emt 0:02:10]} 31. Ra1 {[%emt 0:06:30]} Rb2 {[%emt 0:06:24]} 32. Rab1 {[%emt 0:10:39]} Rxb7 {[%emt 0:01:54]} 33. Rxb7 {[%emt 0:00:32]} Rxc5 {[%emt 0:00:01]} 34. a6 {[%emt 0:00:47]} Ra5 {[%emt 0:00:21]} 35. a7 {[%emt 0:00:25]} Bf8 {[%emt 0:00:05]} 36. Rc1 {[%emt 0:00:33]} Kg7 {[%emt 0:03:15]} 37. Rc8 {[%emt 0:00:48]} Nb6 {[%emt 0:00:45]} 38. Rxb6 {[%emt 0:00:02]} Rxa7 {[%emt 0:00:51]} 39. Rbb8 {[%emt 0:00:08]} Ba3 {[%emt 0:01:41]} 40. g5 {[%emt 0:01:03]} f6 {[%emt 0:00:05]} 41. Rg8+ {[%emt 0:00:08]} Kf7 {[%emt 0:00:02]} 42. gxf6 {[%emt 0:02:01]} 1-0

[Event "Konyaalti Open-B 2019"]
[Site "Konyaalti"]
[Date "2019.11.19"]
[Round "4.3"]
[White "Kazik, Oguz Kagan"]
[Black "Fidanci, Kutay"]
[Result "1-0"]
[ECO "B06"]
[WhiteElo "1638"]
[BlackElo "1601"]
[Annotator "NA RC"]
[PlyCount "110"]
[EventDate "2019.11.20"]
[EventType "swiss"]
[EventCountry "TUR"]
[SourceTitle "playchess.com"]
[Source "ChessBase"]
[SourceQuality "1"]
[TimeControl "5400+30"]

1. d4 {[%emt 0:00:30]} g6 {[%emt 0:00:30]} 2. e4 {[%emt 0:00:00]} Bg7 {[%emt 0:00:00]} 3. Nc3 {[%emt 0:00:00]} d6 {[%emt 0:00:00]} 4. Nf3 {[%emt 0:00:30]} a6 {[%emt 0:00:30]} 5. Be2 {[%emt 0:00:30]} Nd7 {[%emt 0:00:30]} 6. O-O {[%emt 0:00:00]} b5 {[%emt 0:00:30]} 7. Re1 {[%emt 0:01:00]} e6 {[%emt 0:08:30]} 8. a4 {[%emt 0:09:30]} bxa4 {[%emt 0:05:30]} 9. Nxa4 {[%emt 0:09:30]} Bb7 {[%emt 0:00:30]} 10. Bd3 {[%emt 0:00:30]} h6 {[%emt 0:02:30]} 11. Qe2 {[%emt 0:08:30]} Ne7 {[%emt 0:09:30]} 12. Nc3 {[%emt 0:01:30]} Qc8 {[%emt 0:00:00]} 13. h4 {[%emt 0:00:30]} O-O {[%emt 0:06:00]} 14. h5 {[%emt 0:03:30]} g5 {[%emt 0:01:30]} 15. Qe3 {[%emt 0:11:30]} e5 {[%emt 0:12:30]} 16. d5 {[%emt 0:08:30]} f5 {[%emt 0:00:30]} 17. exf5 {[%emt 0:03:30]} Nxf5 {[%emt 0:04:30]} 18. Bxf5 {[%emt 0:01:30]} Rxf5 {[%emt 0:00:00]} 19. Nd2 {[%emt 0:00:30]} Nf6 {[%emt 0:03:00]} 20. Qd3 {[%emt 0:05:30]} g4 {[%emt 0:11:30]} 21. Ra4 {[%emt 0:02:30]} Rxh5 {[%emt 0:05:30]} 22. Nde4 {[%emt 0:03:00]} Kf7 {[%emt 0:14:40]} 23. Nxf6 {[%emt 0:05:00]} Bxf6 {[%emt 0:00:47]} 24. Qh7+ {[%emt 0:05:59]} Bg7 {[%emt 0:00:15]} 25. Ree4 {[%emt 0:00:28]} Qh8 {[%emt 0:01:05]} 26. Qxh8 {[%emt 0:01:14]} Bxh8 {[%emt 0:00:42]} 27. Rac4 {[%emt 0:00:32]} Rc8 {[%emt 0:00:36]} 28. Rb4 {[%emt 0:01:11]} Ba8 {[%emt 0:00:25]} 29. Rxg4 {[%emt 0:00:10]} e4 {[%emt 0:01:47]} 30. Rf4+ {[%emt 0:04:20]} Kg6 {[%emt 0:00:59]} 31. Rbxe4 {[%emt 0:02:38]} Be5 {[%emt 0:01:39]} 32. Rg4+ {[%emt 0:00:49]} Kf5 {[%emt 0:00:51]} 33. Nd1 {[%emt 0:01:24]} c6 {[%emt 0:07:17]} 34. Ne3+ {[%emt 0:02:52]} Kf6 {[%emt 0:00:23]} 35. dxc6 {[%emt 0:00:32]} Bxc6 {[%emt 0:00:29]} 36. Rc4 {[%emt 0:00:10]} Bd7 {[%emt 0:01:07]} 37. Rxc8 {[%emt 0:01:27]} Bxc8 {[%emt 0:00:01]} 38. Rc4 {[%emt 0:00:06]} Be6 {[%emt 0:01:33]} 39. Rc6 {[%emt 0:00:17]} Bd7 {[%emt 0:00:51]} 40. Rb6 {[%emt 0:00:53]} Ke6 {[%emt 0:00:25]} 41. g3 {[%emt 0:01:31]} Bd4 {[%emt 0:00:24]} 42. Rxa6 {[%emt 0:00:11]} Rc5 {[%emt 0:00:27]} 43. c3 {[%emt 0:00:34]} Bf6 {[%emt 0:00:29]} 44. Nc2 {[%emt 0:01:00]} Rd5 {[%emt 0:00:39]} 45. Bf4 {[%emt 0:00:43]} Ke7 {[%emt 0:00:29]} 46. Ne3 {[%emt 0:00:21]} Rb5 {[%emt 0:00:12]} 47. Bxd6+ {[%emt 0:00:21]} Kf7 {[%emt 0:00:31]} 48. Bb4 {[%emt 0:00:10]} h5 {[%emt 0:00:24]} 49. Rd6 {[%emt 0:00:16]} Be6 {[%emt 0:00:18]} 50. Rc6 {[%emt 0:00:36]} Rg5 {[%emt 0:00:54]} 51. Ng2 {[%emt 0:00:30]} Rd5 {[%emt 0:00:18]} 52. Rc7+ {[%emt 0:01:12]} Ke8 {[%emt 0:00:19]} 53. Ne3 {[%emt 0:00:49]} Rd2 {[%emt 0:00:14]} 54. Ba3 {[%emt 0:00:33]} h4 {[%emt 0:00:13]} 55. Nf1 {[%emt 0:00:37]} h3 {[%emt 0:00:29]} 1-0

[Event "Konyaalti Open-B 2019"]
[Site "Konyaalti"]
[Date "2019.11.19"]
[Round "4.4"]
[White "Yilmaz, Mehmet Berat"]
[Black "Demir, Zeki"]
[Result "0-1"]
[ECO "C04"]
[WhiteElo "1292"]
[BlackElo "1685"]
[Annotator "NA RC"]
[PlyCount "52"]
[EventDate "2019.11.20"]
[EventType "swiss"]
[EventCountry "TUR"]
[SourceTitle "playchess.com"]
[Source "ChessBase"]
[SourceQuality "1"]
[TimeControl "5400+30"]

1. e4 {[%emt 0:00:30]} e6 {[%emt 0:00:30]} 2. d4 {[%emt 0:00:30]} d5 {[%emt 0:00:00]} 3. Nd2 {[%emt 0:00:00]} Nc6 {[%emt 0:00:00]} 4. c3 {[%emt 0:01:00]} e5 {[%emt 0:00:30]} 5. Ngf3 {[%emt 0:05:30]} exd4 {[%emt 0:00:30]} 6. cxd4 {[%emt 0:00:30]} dxe4 {[%emt 0:01:30]} 7. Nxe4 {[%emt 0:00:00]} Bb4+ {[%emt 0:00:30]} 8. Bd2 {[%emt 0:01:00]} Qe7 {[%emt 0:00:00]} 9. Qe2 {[%emt 0:01:30]} Bg4 {[%emt 0:03:00]} 10. Bxb4 {[%emt 0:18:30]} Qxb4+ {[%emt 0:00:30]} 11. Nc3+ {[%emt 0:00:30]} Nge7 {[%emt 0:00:30]} 12. Qb5 {[%emt 0:08:30]} Bxf3 {[%emt 0:03:30]} 13. gxf3 {[%emt 0:00:30]} Qxd4 {[%emt 0:00:30]} 14. Rd1 {[%emt 0:01:30]} Qf6 {[%emt 0:03:30]} 15. Qxb7 {[%emt 0:03:30]} Qe5+ {[%emt 0:00:30]} 16. Be2 {[%emt 0:01:30]} Rb8 {[%emt 0:01:30]} 17. Qa6 {[%emt 0:00:00]} Rxb2 {[%emt 0:00:30]} 18. Nd5 {[%emt 0:01:00]} O-O {[%emt 0:05:30]} 19. Nxe7+ {[%emt 0:02:30]} Qxe7 {[%emt 0:01:30]} 20. O-O {[%emt 0:02:30]} Nb4 {[%emt 0:03:05]} 21. Qxa7 {[%emt 0:00:30]} Rxe2 {[%emt 0:00:30]} 22. Rc1 {[%emt 0:00:30]} Qg5+ {[%emt 0:00:00]} 23. Kh1 {[%emt 0:00:30]} Nd3 {[%emt 0:02:25]} 24. Rcd1 {[%emt 0:00:00]} Qf5 {[%emt 0:00:30]} 25. Qb7 {[%emt 0:00:00]} Nxf2+ {[%emt 0:00:30]} 26. Rxf2 {[%emt 0:00:30]} Rxf2 {[%emt 0:00:30]} 0-1

[Event "Konyaalti Open-B 2019"]
[Site "Konyaalti"]
[Date "2019.11.19"]
[Round "4.5"]
[White "Ipek, Egehan"]
[Black "Demir, Hilmi Mustafa"]
[Result "1-0"]
[ECO "A09"]
[WhiteElo "1590"]
[BlackElo "1818"]
[Annotator "NA RC"]
[PlyCount "75"]
[EventDate "2019.11.20"]
[EventType "swiss"]
[EventCountry "TUR"]
[SourceTitle "playchess.com"]
[Source "ChessBase"]
[SourceQuality "1"]
[TimeControl "5400+30"]

1. Nf3 {[%emt 0:02:30]} d5 {[%emt 0:00:30]} 2. c4 {[%emt 0:00:30]} d4 {[%emt 0:00:00]} 3. b4 {[%emt 0:00:30]} f6 {[%emt 0:02:00]} 4. Bb2 {[%emt 0:01:30]} e5 {[%emt 0:00:30]} 5. a3 {[%emt 0:02:30]} c5 {[%emt 0:02:30]} 6. bxc5 {[%emt 0:03:10]} Nc6 {[%emt 0:03:30]} 7. d3 {[%emt 0:00:00]} Bxc5 {[%emt 0:03:30]} 8. Nbd2 {[%emt 0:01:51]} Nh6 {[%emt 0:00:30]} 9. g3 {[%emt 0:00:30]} Nf7 {[%emt 0:02:30]} 10. Bg2 {[%emt 0:00:00]} h5 {[%emt 0:02:30]} 11. h4 {[%emt 0:07:29]} Be6 {[%emt 0:03:30]} 12. Ne4 {[%emt 0:02:30]} Be7 {[%emt 0:02:30]} 13. Bc1 {[%emt 0:03:30]} Qd7 {[%emt 0:03:30]} 14. Rb1 {[%emt 0:02:30]} O-O {[%emt 0:03:30]} 15. O-O {[%emt 0:04:30]} b6 {[%emt 0:03:30]} 16. Qa4 {[%emt 0:06:30]} Rac8 {[%emt 0:02:30]} 17. Bd2 {[%emt 0:05:30]} Bh3 {[%emt 0:04:30]} 18. Rfc1 {[%emt 0:03:30]} Bxg2 {[%emt 0:02:30]} 19. Kxg2 {[%emt 0:00:00]} f5 {[%emt 0:01:30]} 20. Neg5 {[%emt 0:01:00]} e4 {[%emt 0:14:30]} 21. dxe4 {[%emt 0:05:30]} Nxg5 {[%emt 0:02:30]} 22. Nxg5 {[%emt 0:01:30]} Bxg5 {[%emt 0:01:30]} 23. Bxg5 {[%emt 0:00:30]} fxe4 {[%emt 0:03:03]} 24. c5 {[%emt 0:02:30]} Qf5 {[%emt 0:08:57]} 25. Bf4 {[%emt 0:00:30]} bxc5 {[%emt 0:02:30]} 26. Qc4+ {[%emt 0:01:30]} Kh7 {[%emt 0:07:17]} 27. Qxc5 {[%emt 0:00:30]} Qg4 {[%emt 0:01:45]} 28. Qg5 {[%emt 0:07:30]} Qxe2 {[%emt 0:01:58]} 29. Rb7 {[%emt 0:02:30]} Qf3+ {[%emt 0:01:06]} 30. Kg1 {[%emt 0:00:30]} Ne7 {[%emt 0:03:44]} 31. Rxc8 {[%emt 0:01:30]} e3 {[%emt 0:04:33]} 32. Bxe3 {[%emt 0:06:30]} dxe3 {[%emt 0:00:15]} 33. Rxf8 {[%emt 0:00:30]} exf2+ {[%emt 0:02:26]} 34. Kf1 {[%emt 0:02:30]} Qh1+ {[%emt 0:01:17]} 35. Kxf2 {[%emt 0:01:30]} Qh2+ {[%emt 0:00:08]} 36. Ke1 {[%emt 0:01:30]} Qh1+ {[%emt 0:00:09]} 37. Kd2 {[%emt 0:01:30]} Qg2+ {[%emt 0:00:54]} 38. Kd3 {[%emt 0:02:01]} 1-0

[Event "Konyaalti Open-B 2019"]
[Site "Konyaalti"]
[Date "2019.11.19"]
[Round "5.1"]
[White "Demir, Zeki"]
[Black "Karahan, Anil"]
[Result "1/2-1/2"]
[ECO "B38"]
[WhiteElo "1685"]
[BlackElo "1767"]
[Annotator "NA"]
[PlyCount "113"]
[EventDate "2019.11.20"]
[EventType "swiss"]
[EventCountry "TUR"]
[SourceTitle "playchess.com"]
[Source "ChessBase"]
[SourceQuality "1"]
[TimeControl "5400+30"]

1. d4 {[%emt 0:00:30]} Nf6 {[%emt 0:00:30]} 2. c4 {[%emt 0:00:00]} g6 {[%emt 0:00:30]} 3. Nc3 {[%emt 0:00:00]} Bg7 {[%emt 0:00:00]} 4. e4 {[%emt 0:00:30]} d6 {[%emt 0:00:00]} 5. f3 {[%emt 0:00:00]} O-O {[%emt 0:00:30]} 6. Be3 {[%emt 0:00:00]} c5 {[%emt 0:00:30]} 7. Nge2 {[%emt 0:01:30]} Nc6 {[%emt 0:02:30]} 8. Qd2 {[%emt 0:05:30]} cxd4 {[%emt 0:03:30]} 9. Nxd4 {[%emt 0:00:30]} Bd7 {[%emt 0:00:30]} 10. Be2 {[%emt 0:01:30]} Nxd4 {[%emt 0:02:30]} 11. Bxd4 {[%emt 0:00:30]} Bc6 {[%emt 0:00:30]} 12. O-O {[%emt 0:03:01]} Nd7 {[%emt 0:00:30]} 13. Bxg7 {[%emt 0:00:59]} Kxg7 {[%emt 0:00:00]} 14. Qd4+ {[%emt 0:00:30]} Kg8 {[%emt 0:00:00]} 15. Nd5 {[%emt 0:01:30]} Bxd5 {[%emt 0:03:00]} 16. exd5 {[%emt 0:07:30]} Qb6 {[%emt 0:07:00]} 17. Rfd1 {[%emt 0:01:30]} Rfc8 {[%emt 0:02:30]} 18. Kf1 {[%emt 0:00:30]} Qxd4 {[%emt 0:00:30]} 19. Rxd4 {[%emt 0:00:30]} Rc7 {[%emt 0:00:30]} 20. f4 {[%emt 0:01:30]} Rac8 {[%emt 0:05:30]} 21. b3 {[%emt 0:02:30]} Kg7 {[%emt 0:15:30]} 22. g4 {[%emt 0:03:03]} b5 {[%emt 0:18:30]} 23. cxb5 {[%emt 0:00:30]} Rc2 {[%emt 0:00:00]} 24. Rc4 {[%emt 0:00:00]} R8xc4 {[%emt 0:01:00]} 25. bxc4 {[%emt 0:00:27]} Nb6 {[%emt 0:03:30]} 26. a4 {[%emt 0:01:30]} Nxc4 {[%emt 0:00:00]} 27. a5 {[%emt 0:02:30]} Ne3+ {[%emt 0:10:00]} 28. Kf2 {[%emt 0:03:00]} Nxd5 {[%emt 0:00:30]} 29. b6 {[%emt 0:00:30]} Nxb6 {[%emt 0:10:24]} 30. axb6 {[%emt 0:03:03]} axb6 {[%emt 0:00:02]} 31. Rb1 {[%emt 0:00:00]} Ra2 {[%emt 0:07:16]} 32. Rxb6 {[%emt 0:00:00]} Ra4 {[%emt 0:00:02]} 33. Kg3 {[%emt 0:00:00]} Ra3+ {[%emt 0:00:07]} 34. Bf3 {[%emt 0:00:29]} Rc3 {[%emt 0:02:31]} 35. Rb4 {[%emt 0:00:00]} h6 {[%emt 0:02:59]} 36. h4 {[%emt 0:00:00]} Rc5 {[%emt 0:00:21]} 37. Re4 {[%emt 0:00:00]} Kf8 {[%emt 0:00:52]} 38. Re3 {[%emt 0:00:28]} Ra5 {[%emt 0:00:36]} 39. Rc3 {[%emt 0:01:09]} Rb5 {[%emt 0:01:21]} 40. Rc8+ {[%emt 0:00:30]} Kg7 {[%emt 0:00:00]} 41. Re8 {[%emt 0:00:30]} e5 {[%emt 0:01:08]} 42. fxe5 {[%emt 0:02:51]} dxe5 {[%emt 0:00:08]} 43. Re7 {[%emt 0:01:30]} Kf6 {[%emt 0:00:48]} 44. Rd7 {[%emt 0:02:30]} Ke6 {[%emt 0:02:38]} 45. Rc7 {[%emt 0:00:30]} Rb4 {[%emt 0:00:35]} 46. Be2 {[%emt 0:00:30]} f5 {[%emt 0:00:35]} 47. Rc6+ {[%emt 0:01:56]} Kf7 {[%emt 0:00:05]} 48. Bc4+ {[%emt 0:00:30]} Kg7 {[%emt 0:00:37]} 49. Rc7+ {[%emt 0:00:30]} Kh8 {[%emt 0:00:20]} 50. gxf5 {[%emt 0:00:04]} gxf5 {[%emt 0:00:05]} 51. Be6 {[%emt 0:02:05]} Rg4+ {[%emt 0:00:33]} 52. Kh3 {[%emt 0:00:00]} Rf4 {[%emt 0:00:19]} 53. Rf7 {[%emt 0:00:00]} e4 {[%emt 0:01:07]} 54. Bxf5 {[%emt 0:00:00]} e3 {[%emt 0:00:26]} 55. Kg3 {[%emt 0:04:25]} e2 {[%emt 0:00:31]} 56. Kxf4 {[%emt 0:03:30]} e1=Q {[%emt 0:00:08]} 57. Rh7+ {[%emt 0:06:03]} 1/2-1/2

[Event "Konyaalti Open-B 2019"]
[Site "Konyaalti"]
[Date "2019.11.19"]
[Round "5.2"]
[White "Egeli, Sercan Veli"]
[Black "Kazik, Oguz Kagan"]
[Result "1/2-1/2"]
[ECO "B51"]
[WhiteElo "1478"]
[BlackElo "1638"]
[Annotator "NA RC"]
[PlyCount "158"]
[EventDate "2019.11.20"]
[EventType "swiss"]
[EventCountry "TUR"]
[SourceTitle "playchess.com"]
[Source "ChessBase"]
[SourceQuality "1"]
[TimeControl "5400+30"]

1. e4 {[%emt 0:00:30]} c5 {[%emt 0:00:30]} 2. Nf3 {[%emt 0:00:00]} d6 {[%emt 0:00:00]} 3. Bb5+ {[%emt 0:00:00]} Nd7 {[%emt 0:00:00]} 4. O-O {[%emt 0:01:30]} a6 {[%emt 0:00:30]} 5. Be2 {[%emt 0:00:00]} Ngf6 {[%emt 0:02:30]} 6. Nc3 {[%emt 0:01:00]} g6 {[%emt 0:02:30]} 7. d4 {[%emt 0:03:30]} cxd4 {[%emt 0:00:30]} 8. Nxd4 {[%emt 0:00:00]} Bg7 {[%emt 0:00:00]} 9. Be3 {[%emt 0:02:00]} O-O {[%emt 0:01:00]} 10. Qd2 {[%emt 0:03:01]} Re8 {[%emt 0:04:30]} 11. Rad1 {[%emt 0:00:30]} Qc7 {[%emt 0:04:30]} 12. f3 {[%emt 0:00:00]} Ne5 {[%emt 0:01:30]} 13. Nd5 {[%emt 0:05:29]} Nxd5 {[%emt 0:00:30]} 14. exd5 {[%emt 0:00:00]} b5 {[%emt 0:02:30]} 15. b3 {[%emt 0:03:00]} Bb7 {[%emt 0:00:30]} 16. c4 {[%emt 0:01:30]} bxc4 {[%emt 0:00:30]} 17. Rc1 {[%emt 0:18:30]} Bxd5 {[%emt 0:01:30]} 18. Nf5 {[%emt 0:03:01]} Be6 {[%emt 0:02:30]} 19. Nxg7 {[%emt 0:00:30]} Kxg7 {[%emt 0:00:30]} 20. Bd4 {[%emt 0:00:00]} f6 {[%emt 0:02:30]} 21. Rfe1 {[%emt 0:00:29]} Nc6 {[%emt 0:03:30]} 22. Bxc4 {[%emt 0:04:30]} Bxc4 {[%emt 0:00:30]} 23. Rxc4 {[%emt 0:00:30]} Qd7 {[%emt 0:00:30]} 24. Bb2 {[%emt 0:01:30]} Rec8 {[%emt 0:02:30]} 25. Rce4 {[%emt 0:01:30]} e5 {[%emt 0:02:58]} 26. f4 {[%emt 0:04:30]} Rd8 {[%emt 0:00:30]} 27. Rd1 {[%emt 0:06:30]} Qe6 {[%emt 0:01:02]} 28. Rc1 {[%emt 0:03:30]} Ne7 {[%emt 0:02:30]} 29. Rec4 {[%emt 0:01:30]} Nd5 {[%emt 0:01:30]} 30. fxe5 {[%emt 0:01:30]} dxe5 {[%emt 0:00:30]} 31. Ba3 {[%emt 0:02:30]} Nf4 {[%emt 0:02:30]} 32. Rc7+ {[%emt 0:04:30]} Kh8 {[%emt 0:03:03]} 33. Qf2 {[%emt 0:04:30]} Qg4 {[%emt 0:00:00]} 34. Kf1 {[%emt 0:01:30]} Rac8 {[%emt 0:07:27]} 35. Rxc8 {[%emt 0:00:30]} Rxc8 {[%emt 0:00:00]} 36. Rxc8+ {[%emt 0:04:30]} Qxc8 {[%emt 0:00:00]} 37. g3 {[%emt 0:02:59]} Qh3+ {[%emt 0:00:30]} 38. Kg1 {[%emt 0:00:30]} Qg4 {[%emt 0:00:00]} 39. Qd2 {[%emt 0:02:13]} Ne2+ {[%emt 0:00:00]} 40. Kf2 {[%emt 0:00:14]} Nd4 {[%emt 0:00:30]} 41. Qd3 {[%emt 0:00:01]} Qf5+ {[%emt 0:09:30]} 42. Qxf5 {[%emt 0:00:36]} Nxf5 {[%emt 0:00:30]} 43. Bc5 {[%emt 0:00:34]} Kg8 {[%emt 0:00:30]} 44. a4 {[%emt 0:00:05]} Ng7 {[%emt 0:00:30]} 45. b4 {[%emt 0:01:19]} Ne6 {[%emt 0:00:00]} 46. Bb6 {[%emt 0:00:28]} Nf8 {[%emt 0:01:00]} 47. b5 {[%emt 0:02:33]} axb5 {[%emt 0:01:30]} 48. axb5 {[%emt 0:00:02]} Ne6 {[%emt 0:01:30]} 49. Ba5 {[%emt 0:12:10]} Kf7 {[%emt 0:00:30]} 50. Bc3 {[%emt 0:01:09]} Nc5 {[%emt 0:00:30]} 51. Ke3 {[%emt 0:00:29]} Ke6 {[%emt 0:00:30]} 52. Bb4 {[%emt 0:00:40]} Kd5 {[%emt 0:00:30]} 53. b6 {[%emt 0:00:16]} Nb7 {[%emt 0:00:30]} 54. Bf8 {[%emt 0:01:35]} f5 {[%emt 0:00:00]} 55. Bg7 {[%emt 0:00:07]} e4 {[%emt 0:01:31]} 56. h4 {[%emt 0:00:21]} Nd6 {[%emt 0:00:30]} 57. Bd4 {[%emt 0:00:50]} Nc4+ {[%emt 0:02:00]} 58. Kf4 {[%emt 0:00:39]} Kc6 {[%emt 0:00:00]} 59. g4 {[%emt 0:00:32]} fxg4 {[%emt 0:09:59]} 60. Kxg4 {[%emt 0:00:38]} Nxb6 {[%emt 0:02:30]} 61. Kf4 {[%emt 0:00:34]} Nd5+ {[%emt 0:00:30]} 62. Kxe4 {[%emt 0:00:14]} Kd6 {[%emt 0:00:00]} 63. h5 {[%emt 0:00:51]} Ke6 {[%emt 0:00:00]} 64. hxg6 {[%emt 0:00:00]} hxg6 {[%emt 0:00:00]} 65. Bb2 {[%emt 0:00:30]} Nb6 {[%emt 0:00:00]} 66. Kf4 {[%emt 0:00:00]} Nc4 {[%emt 0:00:30]} 67. Bc3 {[%emt 0:00:17]} Nd6 {[%emt 0:00:17]} 68. Kg5 {[%emt 0:00:06]} Kf7 {[%emt 0:00:30]} 69. Bb2 {[%emt 0:01:07]} Nc4 {[%emt 0:00:30]} 70. Bc3 {[%emt 0:00:33]} Ne3 {[%emt 0:00:05]} 71. Bb2 {[%emt 0:00:01]} Nf5 {[%emt 0:00:08]} 72. Be5 {[%emt 0:00:23]} Ne7 {[%emt 0:00:43]} 73. Bb2 {[%emt 0:00:13]} Nc6 {[%emt 0:00:30]} 74. Bc3 {[%emt 0:00:11]} Nd8 {[%emt 0:00:00]} 75. Bb2 {[%emt 0:00:21]} Ne6+ {[%emt 0:00:00]} 76. Kh6 {[%emt 0:00:08]} g5 {[%emt 0:00:00]} 77. Kh5 {[%emt 0:00:16]} Ke7 {[%emt 0:00:14]} 78. Bc1 {[%emt 0:00:03]} Kf6 {[%emt 0:00:03]} 79. Bxg5+ {[%emt 0:00:05]} Nxg5 {[%emt 0:00:06]} 1/2-1/2

[Event "Konyaalti Open-B 2019"]
[Site "Konyaalti"]
[Date "2019.11.19"]
[Round "5.3"]
[White "Cekli, Cem"]
[Black "Ozdemir, Abdurrahim Kayra"]
[Result "1/2-1/2"]
[ECO "D27"]
[WhiteElo "1812"]
[BlackElo "1513"]
[Annotator "NA RC"]
[PlyCount "85"]
[EventDate "2019.11.20"]
[EventType "swiss"]
[EventCountry "TUR"]
[SourceTitle "playchess.com"]
[Source "ChessBase"]
[SourceQuality "1"]
[TimeControl "5400+30"]

1. d4 {[%emt 0:00:30]} d5 {[%emt 0:00:30]} 2. c4 {[%emt 0:00:00]} dxc4 {[%emt 0:00:30]} 3. Nf3 {[%emt 0:00:00]} Nf6 {[%emt 0:00:00]} 4. e3 {[%emt 0:00:30]} e6 {[%emt 0:01:00]} 5. Bxc4 {[%emt 0:00:00]} c5 {[%emt 0:00:30]} 6. Nc3 {[%emt 0:01:00]} a6 {[%emt 0:00:30]} 7. a4 {[%emt 0:03:30]} Nc6 {[%emt 0:01:30]} 8. O-O {[%emt 0:00:30]} Be7 {[%emt 0:03:30]} 9. dxc5 {[%emt 0:00:30]} Bxc5 {[%emt 0:00:30]} 10. Qxd8+ {[%emt 0:00:30]} Kxd8 {[%emt 0:01:30]} 11. e4 {[%emt 0:02:30]} b6 {[%emt 0:10:30]} 12. Bg5 {[%emt 0:15:30]} h6 {[%emt 0:03:30]} 13. Bh4 {[%emt 0:10:30]} g5 {[%emt 0:05:30]} 14. Bg3 {[%emt 0:00:00]} Nh5 {[%emt 0:00:30]} 15. Ne5 {[%emt 0:03:00]} Nxg3 {[%emt 0:09:30]} 16. Nxc6+ {[%emt 0:00:30]} Kc7 {[%emt 0:00:30]} 17. hxg3 {[%emt 0:00:30]} Kxc6 {[%emt 0:00:00]} 18. Be2 {[%emt 0:01:30]} Kd6 {[%emt 0:06:00]} 19. Bh5 {[%emt 0:04:30]} Ke7 {[%emt 0:00:30]} 20. Rfd1 {[%emt 0:03:30]} Bb7 {[%emt 0:04:30]} 21. Rd3 {[%emt 0:00:30]} Rad8 {[%emt 0:03:30]} 22. Rad1 {[%emt 0:00:30]} f6 {[%emt 0:03:02]} 23. Bf3 {[%emt 0:04:30]} Rxd3 {[%emt 0:02:58]} 24. Rxd3 {[%emt 0:00:00]} Rd8 {[%emt 0:01:30]} 25. Rxd8 {[%emt 0:03:00]} Kxd8 {[%emt 0:00:30]} 26. Bd1 {[%emt 0:01:30]} Ke7 {[%emt 0:01:30]} 27. Kf1 {[%emt 0:00:00]} Bd4 {[%emt 0:01:30]} 28. f3 {[%emt 0:01:00]} a5 {[%emt 0:11:30]} 29. Bb3 {[%emt 0:14:30]} Ba6+ {[%emt 0:04:30]} 30. Ke1 {[%emt 0:00:00]} Be5 {[%emt 0:02:30]} 31. Kf2 {[%emt 0:00:00]} Kd6 {[%emt 0:04:38]} 32. Nd1 {[%emt 0:01:30]} Bd4+ {[%emt 0:02:49]} 33. Ke1 {[%emt 0:00:30]} f5 {[%emt 0:00:46]} 34. exf5 {[%emt 0:01:56]} exf5 {[%emt 0:00:11]} 35. Bf7 {[%emt 0:00:00]} Kc5 {[%emt 0:00:56]} 36. b3 {[%emt 0:01:34]} Kb4 {[%emt 0:02:20]} 37. Kd2 {[%emt 0:01:30]} f4 {[%emt 0:03:00]} 38. g4 {[%emt 0:01:59]} Bb7 {[%emt 0:03:17]} 39. Kd3 {[%emt 0:01:01]} Kc5 {[%emt 0:00:35]} 40. Nc3 {[%emt 0:01:30]} Bxc3 {[%emt 0:06:10]} 41. Kxc3 {[%emt 0:00:00]} Bc6 {[%emt 0:00:31]} 42. Bg6 {[%emt 0:05:24]} Bd5 {[%emt 0:00:57]} 43. Bd3 {[%emt 0:00:30]} 1/2-1/2